[Event "*** Titled Tuesday Blitz"]
[Site "Chess.com"]
[Date "2019.06.04"]
[Round "8"]
[White "aa175"]
[Black "Denis_Palkovich"]
[Result "1-0"]
[WhiteElo "2023"]
[BlackElo "2219"]
[TimeControl "180+2"]
[EndTime "14:53:22 PDT"]
[Termination "aa175 won by checkmate"]

1. d4 {[%clk 0:03:01.9]} 1... d5 {[%clk 0:03:00]} 2. Bf4 {[%clk 0:03:03.4]} 2...
Bf5 {[%clk 0:02:53.3]} 3. e3 {[%clk 0:03:04.2]} 3... e6 {[%clk 0:02:54.9]} 4. c4
{[%clk 0:03:05.2]} 4... Bd6 {[%clk 0:02:56.3]} 5. Bg3 {[%clk 0:03:06.1]} 5...
Nf6 {[%clk 0:02:54.5]} 6. Nc3 {[%clk 0:03:01.2]} 6... O-O {[%clk 0:02:46.4]} 7.
Nf3 {[%clk 0:02:55.8]} 7... c6 {[%clk 0:02:44.5]} 8. Qb3 {[%clk 0:02:51.5]} 8...
Bxg3 {[%clk 0:02:36.1]} 9. hxg3 {[%clk 0:02:42.8]} 9... Qb6 {[%clk 0:02:35.4]}
10. c5 {[%clk 0:02:41.3]} 10... Qxb3 {[%clk 0:02:36.1]} 11. axb3 {[%clk
0:02:43.2]} 11... a6 {[%clk 0:02:37]} 12. b4 {[%clk 0:02:45.1]} 12... Nbd7
{[%clk 0:02:38.3]} 13. Nh4 {[%clk 0:02:29.9]} 13... Be4 {[%clk 0:02:32.5]} 14.
f3 {[%clk 0:02:23.9]} 14... Bc2 {[%clk 0:02:19.8]} 15. Kd2 {[%clk 0:02:23.9]}
15... Bb3 {[%clk 0:02:18.3]} 16. g4 {[%clk 0:02:00.9]} 16... g5 {[%clk
0:02:15.8]} 17. Bd3 {[%clk 0:01:28]} 17... gxh4 {[%clk 0:02:13.3]} 18. g5 {[%clk
0:01:26.7]} 18... Ne8 {[%clk 0:02:05.9]} 19. Rxh4 {[%clk 0:01:26]} 19... f5
{[%clk 0:02:07.3]} 20. Rah1 {[%clk 0:01:13.3]} 20... Rf7 {[%clk 0:02:00.6]} 21.
Ne2 {[%clk 0:01:10]} 21... e5 {[%clk 0:01:28.7]} 22. dxe5 {[%clk 0:00:40.2]}
22... Nxe5 {[%clk 0:01:28]} 23. Nd4 {[%clk 0:00:40.2]} 23... Nxd3 {[%clk
0:01:27.7]} 24. g6 {[%clk 0:00:26.5]} 24... hxg6 {[%clk 0:01:27.7]} 25. Ne6
{[%clk 0:00:13.8]} 25... Re7 {[%clk 0:01:26.1]} 26. Rh8+ {[%clk 0:00:06.2]}
26... Kf7 {[%clk 0:01:26.8]} 27. Ng5+ {[%clk 0:00:06.5]} 27... Kf6 {[%clk
0:01:27.7]} 28. Nh7+ {[%clk 0:00:04]} 28... Rxh7 {[%clk 0:01:11.9]} 29. R1xh7
{[%clk 0:00:03.3]} 29... Nxb4 {[%clk 0:00:50.1]} 30. Kc3 {[%clk 0:00:04]} 30...
Nc2 {[%clk 0:00:15.5]} 31. Kxb3 {[%clk 0:00:03.9]} 31... Nxe3 {[%clk 0:00:14.1]}
32. Rf8+ {[%clk 0:00:05.1]} 32... Ke6 {[%clk 0:00:14.4]} 33. Rff7 {[%clk
0:00:04.3]} 33... Nc4 {[%clk 0:00:09]} 34. Re7+ {[%clk 0:00:04.1]} 34... Kf6
{[%clk 0:00:09.9]} 35. f4 {[%clk 0:00:05.6]} 35... g5 {[%clk 0:00:03.7]} 36.
Ref7+ {[%clk 0:00:03.3]} 36... Kg6 {[%clk 0:00:05]} 37. fxg5 {[%clk 0:00:04]}
37... Kxg5 {[%clk 0:00:05.9]} 38. Rh8 {[%clk 0:00:03.8]} 38... Rc8 {[%clk
0:00:04.2]} 39. Rff8 {[%clk 0:00:03.9]} 39... Ned6 {[%clk 0:00:04.7]} 40. cxd6
{[%clk 0:00:04.5]} 40... Rxf8 {[%clk 0:00:03.9]} 41. Rxf8 {[%clk 0:00:05.2]}
41... Nxd6 {[%clk 0:00:05.8]} 42. Rd8 {[%clk 0:00:06.3]} 42... Nb5 {[%clk
0:00:04.2]} 43. Rb8 {[%clk 0:00:06.9]} 43... Nd4+ {[%clk 0:00:03.2]} 44. Kc3
{[%clk 0:00:07.6]} 44... Ne2+ {[%clk 0:00:03.3]} 45. Kd2 {[%clk 0:00:07.7]}
45... Nf4 {[%clk 0:00:05.2]} 46. Rxb7 {[%clk 0:00:06.5]} 46... Kf6 {[%clk
0:00:07.1]} 47. Rb6 {[%clk 0:00:06.6]} 47... Ke5 {[%clk 0:00:05.5]} 48. g3
{[%clk 0:00:05.9]} 48... Ng2 {[%clk 0:00:07.4]} 49. Rxc6 {[%clk 0:00:07]} 49...
d4 {[%clk 0:00:07.2]} 50. Rxa6 {[%clk 0:00:07.7]} 50... Ne3 {[%clk 0:00:07.5]}
51. b3 {[%clk 0:00:06.5]} 51... Nf1+ {[%clk 0:00:07.7]} 52. Ke2 {[%clk
0:00:03.8]} 52... Nxg3+ {[%clk 0:00:09.6]} 53. Kf3 {[%clk 0:00:05.3]} 53... Ne4
{[%clk 0:00:10.3]} 54. Ra5+ {[%clk 0:00:06.4]} 54... Ke6 {[%clk 0:00:11]} 55.
Kf4 {[%clk 0:00:07.3]} 55... Nd2 {[%clk 0:00:11.1]} 56. b4 {[%clk 0:00:06.1]}
56... Nb3 {[%clk 0:00:09.4]} 57. Rxf5 {[%clk 0:00:05.6]} 57... d3 {[%clk
0:00:07.9]} 58. Re5+ {[%clk 0:00:06.2]} 58... Kd6 {[%clk 0:00:08.4]} 59. Re8
{[%clk 0:00:05.4]} 59... Kd5 {[%clk 0:00:06.8]} 60. Ke3 {[%clk 0:00:04.6]} 60...
Kc4 {[%clk 0:00:07.2]} 61. Rc8+ {[%clk 0:00:02.6]} 61... Kxb4 {[%clk 0:00:08.1]}
62. Kxd3 {[%clk 0:00:04.5]} 62... Nc5+ {[%clk 0:00:08.7]} 63. Kd4 {[%clk
0:00:05.7]} 63... Ne6+ {[%clk 0:00:09.7]} 64. Kd5 {[%clk 0:00:07]} 64... Nf4+
{[%clk 0:00:10.8]} 65. Ke4 {[%clk 0:00:07.7]} 65... Ne2 {[%clk 0:00:11.2]} 66.
Kd3 {[%clk 0:00:07.6]} 66... Nf4+ {[%clk 0:00:11.5]} 67. Ke3 {[%clk 0:00:08.3]}
67... Nd5+ {[%clk 0:00:12.4]} 68. Kd4 {[%clk 0:00:09.2]} 68... Nf4 {[%clk
0:00:13]} 69. Rb8+ {[%clk 0:00:09.4]} 69... Ka5 {[%clk 0:00:13.5]} 70. Kc5
{[%clk 0:00:04.9]} 70... Ka6 {[%clk 0:00:11.9]} 71. Kc6 {[%clk 0:00:04.5]} 71...
Ka7 {[%clk 0:00:12.8]} 72. Rb7+ {[%clk 0:00:03.8]} 72... Ka8 {[%clk 0:00:10.4]}
73. Rf7 {[%clk 0:00:03.8]} 73... Nd3 {[%clk 0:00:10.3]} 74. Kb6 {[%clk
0:00:03.3]} 74... Nc5 {[%clk 0:00:06.2]} 75. Rf8# {[%clk 0:00:02.7]} 1-0

[Event "*** Titled Tuesday Blitz"]
[Site "Chess.com"]
[Date "2019.06.04"]
[Round "8"]
[White "albi1999"]
[Black "26andrej26"]
[Result "0-1"]
[WhiteElo "2435"]
[BlackElo "2507"]
[TimeControl "180+2"]
[EndTime "14:53:35 PDT"]
[Termination "26andrej26 won by resignation"]

1. d4 {[%clk 0:02:56.1]} 1... Nf6 {[%clk 0:02:59.8]} 2. c4 {[%clk 0:02:56.6]}
2... g6 {[%clk 0:03:00.9]} 3. Nc3 {[%clk 0:02:57.6]} 3... Bg7 {[%clk 0:03:02.3]}
4. Nf3 {[%clk 0:02:55]} 4... d6 {[%clk 0:03:04.2]} 5. g3 {[%clk 0:02:53]} 5...
O-O {[%clk 0:03:06.1]} 6. Bg2 {[%clk 0:02:54.3]} 6... Nc6 {[%clk 0:03:08]} 7.
O-O {[%clk 0:02:55.1]} 7... a6 {[%clk 0:03:09.9]} 8. b3 {[%clk 0:02:54.6]} 8...
Rb8 {[%clk 0:03:09.2]} 9. d5 {[%clk 0:02:55.8]} 9... Na5 {[%clk 0:03:08.7]} 10.
Bg5 {[%clk 0:02:57.2]} 10... Nd7 {[%clk 0:03:07.5]} 11. Qd2 {[%clk 0:02:49.4]}
11... c5 {[%clk 0:03:08.7]} 12. dxc6 {[%clk 0:02:48.6]} 12... bxc6 {[%clk
0:03:10.6]} 13. Rac1 {[%clk 0:02:42.4]} 13... Nc5 {[%clk 0:03:07.3]} 14. Bh6
{[%clk 0:02:40.1]} 14... Ne6 {[%clk 0:02:43.2]} 15. Rfd1 {[%clk 0:02:35.4]}
15... c5 {[%clk 0:02:42.3]} 16. Bxg7 {[%clk 0:02:29.5]} 16... Kxg7 {[%clk
0:02:42.2]} 17. Nd5 {[%clk 0:02:28.2]} 17... Nc6 {[%clk 0:02:38.1]} 18. Qc3+
{[%clk 0:02:26.7]} 18... Kg8 {[%clk 0:02:25.9]} 19. Qe3 {[%clk 0:02:25.7]} 19...
Kg7 {[%clk 0:02:20.3]} 20. Rd2 {[%clk 0:02:23.9]} 20... a5 {[%clk 0:02:10.1]}
21. Nc3 {[%clk 0:02:16]} 21... Bb7 {[%clk 0:02:06.9]} 22. Rcd1 {[%clk
0:02:16.7]} 22... Ncd4 {[%clk 0:02:02.2]} 23. Ne1 {[%clk 0:02:08.5]} 23... Bxg2
{[%clk 0:02:00.3]} 24. Nxg2 {[%clk 0:02:10.2]} 24... Qd7 {[%clk 0:01:36]} 25.
Qd3 {[%clk 0:02:02.4]} 25... Qb7 {[%clk 0:01:27.6]} 26. Ne1 {[%clk 0:02:00.1]}
26... h5 {[%clk 0:01:22.6]} 27. h4 {[%clk 0:01:55.7]} 27... Rfe8 {[%clk
0:01:12]} 28. Nd5 {[%clk 0:01:50.8]} 28... a4 {[%clk 0:01:06.4]} 29. e3 {[%clk
0:01:51.3]} 29... Nc6 {[%clk 0:01:07.5]} 30. bxa4 {[%clk 0:01:47]} 30... Qa6
{[%clk 0:01:03.2]} 31. Qc3+ {[%clk 0:01:47.4]} 31... Kg8 {[%clk 0:00:57.3]} 32.
Qc2 {[%clk 0:01:21.8]} 32... Ra8 {[%clk 0:00:39.6]} 33. Qe4 {[%clk 0:01:16.2]}
33... Qxa4 {[%clk 0:00:33.6]} 34. Nb6 {[%clk 0:01:16.4]} 34... Qa6 {[%clk
0:00:20.9]} 35. Nxa8 {[%clk 0:01:16.9]} 35... Rxa8 {[%clk 0:00:19.3]} 36. Nf3
{[%clk 0:01:15.9]} 36... Qa4 {[%clk 0:00:11.7]} 37. Rb1 {[%clk 0:01:13.8]} 37...
Nb4 {[%clk 0:00:09.6]} 38. Kg2 {[%clk 0:01:12.5]} 38... Kg7 {[%clk 0:00:05.6]}
39. Rbb2 {[%clk 0:01:10.1]} 39... Qc6 {[%clk 0:00:04.3]} 40. Qxc6 {[%clk
0:01:07.6]} 40... Nxc6 {[%clk 0:00:06.2]} 41. Ne1 {[%clk 0:01:04.7]} 41... Nb4
{[%clk 0:00:06.5]} 42. Kf3 {[%clk 0:01:05.1]} 42... Nd8 {[%clk 0:00:06.3]} 43.
Ke2 {[%clk 0:01:06.3]} 43... Ndc6 {[%clk 0:00:07.7]} 44. Nd3 {[%clk 0:01:06.2]}
44... Nxd3 {[%clk 0:00:06.9]} 45. Kxd3 {[%clk 0:01:08.1]} 45... Ra3+ {[%clk
0:00:04.9]} 46. Rb3 {[%clk 0:01:07.6]} 46... Ra4 {[%clk 0:00:06.2]} 47. f4
{[%clk 0:01:04]} 47... Na5 {[%clk 0:00:06.6]} 48. Rc3 {[%clk 0:01:03.9]} 48...
Nc6 {[%clk 0:00:07]} 49. a3 {[%clk 0:01:04.2]} 49... Kf6 {[%clk 0:00:07.4]} 50.
Rb2 {[%clk 0:01:02.2]} 50... Ke6 {[%clk 0:00:07.7]} 51. Rb6 {[%clk 0:00:59.5]}
51... Kd7 {[%clk 0:00:08.3]} 52. Rb7+ {[%clk 0:01:00]} 52... Ke6 {[%clk
0:00:09.5]} 53. Rc7 {[%clk 0:00:54.7]} 53... Ra6 {[%clk 0:00:09.1]} 54. e4
{[%clk 0:00:46]} 54... Nd4 {[%clk 0:00:08.5]} 55. Rb7 {[%clk 0:00:43.7]} 55...
Ra4 {[%clk 0:00:09.2]} 56. Rb1 {[%clk 0:00:42.4]} 56... Ra6 {[%clk 0:00:08.1]}
57. Ra1 {[%clk 0:00:43.1]} 57... Ra4 {[%clk 0:00:08.8]} 58. Ra2 {[%clk
0:00:44.6]} 58... Nc6 {[%clk 0:00:09.7]} 59. Rf2 {[%clk 0:00:41.8]} 59... f6
{[%clk 0:00:04.8]} 60. f5+ {[%clk 0:00:38.2]} 60... gxf5 {[%clk 0:00:05.6]} 61.
exf5+ {[%clk 0:00:40.1]} 61... Kd7 {[%clk 0:00:05.2]} 62. Ke4 {[%clk 0:00:39.9]}
62... Nd4 {[%clk 0:00:04]} 63. Rb2 {[%clk 0:00:39.7]} 63... Kc6 {[%clk
0:00:04.7]} 64. Rb8 {[%clk 0:00:40.4]} 64... Ne2 {[%clk 0:00:03.7]} 65. Re3
{[%clk 0:00:32.6]} 65... Nd4 {[%clk 0:00:04.9]} 66. Rh8 {[%clk 0:00:26.9]} 66...
Rxc4 {[%clk 0:00:05.6]} 67. Rd3 {[%clk 0:00:19]} 67... d5+ {[%clk 0:00:04.3]}
68. Ke3 {[%clk 0:00:18.6]} 68... Nxf5+ {[%clk 0:00:05.4]} 69. Kf3 {[%clk
0:00:18.2]} 69... e5 {[%clk 0:00:03.3]} 70. Kf2 {[%clk 0:00:16.2]} 70... e4
{[%clk 0:00:04.1]} 71. Rb3 {[%clk 0:00:17.7]} 71... Rc2+ {[%clk 0:00:05.1]} 72.
Ke1 {[%clk 0:00:17.3]} 72... d4 {[%clk 0:00:06.4]} 73. Rxh5 {[%clk 0:00:18.2]}
73... Ne3 {[%clk 0:00:07.5]} 74. Rxe3 {[%clk 0:00:18.2]} 74... dxe3 {[%clk
0:00:08.6]} 75. Rf5 {[%clk 0:00:18.7]} 75... c4 {[%clk 0:00:09.1]} 76. h5 {[%clk
0:00:19.2]} 76... Rh2 {[%clk 0:00:09.7]} 77. Rxf6+ {[%clk 0:00:20.1]} 77... Kd5
{[%clk 0:00:10.9]} 78. h6 {[%clk 0:00:21.8]} 78... c3 {[%clk 0:00:11.9]} 79. Rf8
{[%clk 0:00:18.1]} 79... c2 {[%clk 0:00:13.2]} 80. Rc8 {[%clk 0:00:18.9]} 80...
Rh1+ {[%clk 0:00:13.9]} 81. Ke2 {[%clk 0:00:20.3]} 81... c1=Q {[%clk 0:00:15.4]}
82. Rxc1 {[%clk 0:00:21.7]} 82... Rxc1 {[%clk 0:00:16.7]} 83. Kxe3 {[%clk
0:00:23.4]} 83... Rh1 {[%clk 0:00:17.8]} 84. g4 {[%clk 0:00:24.2]} 84... Rxh6
{[%clk 0:00:18.9]} 85. g5 {[%clk 0:00:26.1]} 0-1

[Event "*** Titled Tuesday Blitz"]
[Site "Chess.com"]
[Date "2019.06.04"]
[Round "8"]
[White "PaulfromSPb"]
[Black "champ2005"]
[Result "0-1"]
[WhiteElo "2668"]
[BlackElo "2830"]
[TimeControl "180+2"]
[EndTime "14:53:50 PDT"]
[Termination "champ2005 won on time"]

1. d4 {[%clk 0:03:01.9]} 1... Nf6 {[%clk 0:03:00.5]} 2. Bf4 {[%clk 0:03:01.6]}
2... g6 {[%clk 0:02:59.8]} 3. e3 {[%clk 0:03:00.5]} 3... Bg7 {[%clk 0:03:00.1]}
4. c3 {[%clk 0:02:59]} 4... O-O {[%clk 0:03:00.6]} 5. Nd2 {[%clk 0:02:59.5]}
5... b6 {[%clk 0:03:00.7]} 6. h3 {[%clk 0:02:59.4]} 6... c5 {[%clk 0:03:01.2]}
7. Ngf3 {[%clk 0:02:58.3]} 7... d6 {[%clk 0:03:01.2]} 8. Bc4 {[%clk 0:02:56.1]}
8... Bb7 {[%clk 0:02:59.4]} 9. O-O {[%clk 0:02:56.6]} 9... Nbd7 {[%clk
0:02:59.3]} 10. Bh2 {[%clk 0:02:56.6]} 10... a6 {[%clk 0:02:58.9]} 11. a4 {[%clk
0:02:57]} 11... Ra7 {[%clk 0:02:59.8]} 12. Qb3 {[%clk 0:02:56.1]} 12... Qa8
{[%clk 0:02:55.1]} 13. Rfe1 {[%clk 0:02:56.5]} 13... h6 {[%clk 0:02:34.6]} 14.
Bd3 {[%clk 0:02:52.2]} 14... Ne4 {[%clk 0:02:32.8]} 15. Nxe4 {[%clk 0:02:30.7]}
15... Bxe4 {[%clk 0:02:34.7]} 16. Be2 {[%clk 0:02:31.7]} 16... Nf6 {[%clk
0:02:28.3]} 17. Red1 {[%clk 0:02:17.2]} 17... Qc6 {[%clk 0:02:17.3]} 18. Ne1
{[%clk 0:02:14.7]} 18... Raa8 {[%clk 0:01:57.7]} 19. f3 {[%clk 0:02:13.6]} 19...
Bf5 {[%clk 0:01:55.2]} 20. e4 {[%clk 0:02:12.6]} 20... Bd7 {[%clk 0:01:53.8]}
21. Nc2 {[%clk 0:02:00.7]} 21... b5 {[%clk 0:01:39.6]} 22. axb5 {[%clk
0:01:55.5]} 22... axb5 {[%clk 0:01:40.4]} 23. Ne3 {[%clk 0:01:51.1]} 23... c4
{[%clk 0:01:38.4]} 24. Qb4 {[%clk 0:01:45.9]} 24... Rxa1 {[%clk 0:01:32.7]} 25.
Rxa1 {[%clk 0:01:46.2]} 25... Ra8 {[%clk 0:01:33.8]} 26. Rxa8+ {[%clk
0:01:41.3]} 26... Qxa8 {[%clk 0:01:35.7]} 27. e5 {[%clk 0:01:42.7]} 27... dxe5
{[%clk 0:01:34.8]} 28. Bxe5 {[%clk 0:01:25.2]} 28... e6 {[%clk 0:01:35.1]} 29.
Qe7 {[%clk 0:01:11.3]} 29... Nd5 {[%clk 0:01:05.8]} 30. Qxd7 {[%clk 0:00:42.8]}
30... Nxe3 {[%clk 0:01:04.3]} 31. Qxb5 {[%clk 0:00:43.9]} 31... Qa1+ {[%clk
0:00:49.3]} 32. Kf2 {[%clk 0:00:44]} 32... Nc2 {[%clk 0:00:47.7]} 33. f4 {[%clk
0:00:20.5]} 33... Qe1+ {[%clk 0:00:38.4]} 34. Kf3 {[%clk 0:00:21.8]} 34... Qd2
{[%clk 0:00:37]} 35. Kf2 {[%clk 0:00:21.2]} 35... Qe3+ {[%clk 0:00:33.1]} 36.
Kf1 {[%clk 0:00:22.5]} 36... Qc1+ {[%clk 0:00:34.1]} 37. Kf2 {[%clk 0:00:23.7]}
37... Qe3+ {[%clk 0:00:29.1]} 38. Kf1 {[%clk 0:00:24.6]} 38... Bxe5 {[%clk
0:00:25]} 39. Qxe5 {[%clk 0:00:23.1]} 39... Qc1+ {[%clk 0:00:25.2]} 40. Kf2
{[%clk 0:00:23.4]} 40... Qxb2 {[%clk 0:00:26.4]} 41. d5 {[%clk 0:00:19.8]} 41...
Qb6+ {[%clk 0:00:21.9]} 42. Kg3 {[%clk 0:00:18.5]} 42... exd5 {[%clk 0:00:18.3]}
43. Qxd5 {[%clk 0:00:19.1]} 43... Qe3+ {[%clk 0:00:18.1]} 44. Qf3 {[%clk
0:00:20.2]} 44... Qc5 {[%clk 0:00:14.2]} 45. Qe4 {[%clk 0:00:20]} 45... Ne3
{[%clk 0:00:13]} 46. Kh2 {[%clk 0:00:21]} 46... Nf5 {[%clk 0:00:12.5]} 47. Bg4
{[%clk 0:00:20.7]} 47... Nd6 {[%clk 0:00:12.3]} 48. Qe7 {[%clk 0:00:20.3]} 48...
Qd5 {[%clk 0:00:12.3]} 49. Bf3 {[%clk 0:00:20.5]} 49... Qd2 {[%clk 0:00:13.2]}
50. Qd8+ {[%clk 0:00:19.3]} 50... Kg7 {[%clk 0:00:13.8]} 51. Kh1 {[%clk
0:00:12.9]} 51... Qc1+ {[%clk 0:00:14.2]} 52. Kh2 {[%clk 0:00:13.1]} 52... Qxf4+
{[%clk 0:00:15.3]} 53. Kg1 {[%clk 0:00:13.3]} 53... Nf5 {[%clk 0:00:16.3]} 54.
Qd1 {[%clk 0:00:13.1]} 54... Qe3+ {[%clk 0:00:16.9]} 55. Kh2 {[%clk 0:00:14]}
55... Qxc3 {[%clk 0:00:18.3]} 56. Qd5 {[%clk 0:00:12.4]} 56... Ne3 {[%clk
0:00:13.7]} 57. Qe4 {[%clk 0:00:12.1]} 57... Nf5 {[%clk 0:00:13.4]} 58. Qd5
{[%clk 0:00:12.6]} 58... Ne3 {[%clk 0:00:08.1]} 59. Qe4 {[%clk 0:00:12.8]} 59...
h5 {[%clk 0:00:09.5]} 60. h4 {[%clk 0:00:08.8]} 60... Kf6 {[%clk 0:00:08.5]} 61.
Qf4+ {[%clk 0:00:09.3]} 61... Ke6 {[%clk 0:00:09.4]} 62. Kg1 {[%clk 0:00:08.7]}
62... Qe1+ {[%clk 0:00:08.6]} 63. Kh2 {[%clk 0:00:09.9]} 63... Qc3 {[%clk
0:00:08.4]} 64. Kg1 {[%clk 0:00:09.7]} 64... Qe5 {[%clk 0:00:08.9]} 65. Qh6
{[%clk 0:00:09.6]} 65... c3 {[%clk 0:00:09.2]} 66. Qf8 {[%clk 0:00:09.2]} 66...
c2 {[%clk 0:00:09.1]} 67. Qe8+ {[%clk 0:00:10.3]} 67... Kf6 {[%clk 0:00:09.7]}
68. Qh8+ {[%clk 0:00:10.3]} 68... Kf5 {[%clk 0:00:10.8]} 69. Qc8+ {[%clk
0:00:11.1]} 69... Kf6 {[%clk 0:00:08.9]} 70. Qh8+ {[%clk 0:00:11.4]} 70... Kf5
{[%clk 0:00:10.2]} 71. Qc8+ {[%clk 0:00:12.3]} 71... Kf4 {[%clk 0:00:09.2]} 72.
Kf2 {[%clk 0:00:11.1]} 72... Nd1+ {[%clk 0:00:09.5]} 73. Kg1 {[%clk 0:00:12.2]}
73... Qe3+ {[%clk 0:00:10.2]} 74. Kh2 {[%clk 0:00:13]} 74... c1=Q {[%clk
0:00:11.3]} 75. Qb8+ {[%clk 0:00:10.7]} 75... Qe5 {[%clk 0:00:09.6]} 76. Qb4+
{[%clk 0:00:05.5]} 76... Kf5+ {[%clk 0:00:09.7]} 77. Kh3 {[%clk 0:00:04]} 77...
Qcf4 {[%clk 0:00:10.1]} 0-1

[Event "*** Titled Tuesday Blitz"]
[Site "Chess.com"]
[Date "2019.06.04"]
[Round "8"]
[White "tbalabayev"]
[Black "vinniethepooh"]
[Result "0-1"]
[WhiteElo "2354"]
[BlackElo "2566"]
[TimeControl "180+2"]
[EndTime "14:55:34 PDT"]
[Termination "vinniethepooh won by resignation"]

1. Nf3 {[%clk 0:03:01.9]} 1... d5 {[%clk 0:02:59.8]} 2. g3 {[%clk 0:03:01.8]}
2... Nf6 {[%clk 0:03:01.2]} 3. Bg2 {[%clk 0:03:03.2]} 3... g6 {[%clk 0:03:02]}
4. O-O {[%clk 0:03:04.7]} 4... Bg7 {[%clk 0:03:03.2]} 5. d3 {[%clk 0:03:06.4]}
5... O-O {[%clk 0:03:03.5]} 6. Nbd2 {[%clk 0:03:08.3]} 6... c5 {[%clk
0:03:04.6]} 7. e4 {[%clk 0:03:07.7]} 7... Nc6 {[%clk 0:03:05.9]} 8. Re1 {[%clk
0:03:08.1]} 8... dxe4 {[%clk 0:03:05.1]} 9. dxe4 {[%clk 0:03:09]} 9... Qc7
{[%clk 0:03:03.9]} 10. c3 {[%clk 0:03:08]} 10... e5 {[%clk 0:03:02.4]} 11. a4
{[%clk 0:03:06.2]} 11... b6 {[%clk 0:03:01.5]} 12. Qc2 {[%clk 0:03:04.2]} 12...
Rd8 {[%clk 0:03:01]} 13. Nc4 {[%clk 0:03:05]} 13... Ba6 {[%clk 0:02:55.9]} 14.
Ne3 {[%clk 0:03:04.2]} 14... Bd3 {[%clk 0:02:54.9]} 15. Qb3 {[%clk 0:02:59.4]}
15... Bxe4 {[%clk 0:02:41]} 16. Ng4 {[%clk 0:02:37.2]} 16... Bd5 {[%clk
0:02:28.4]} 17. Nxf6+ {[%clk 0:02:35.4]} 17... Bxf6 {[%clk 0:02:28.5]} 18. Qc2
{[%clk 0:02:29.2]} 18... Na5 {[%clk 0:02:20.3]} 19. Bh6 {[%clk 0:02:21.2]} 19...
Qb7 {[%clk 0:01:59.2]} 20. Qe2 {[%clk 0:02:04.2]} 20... Nb3 {[%clk 0:01:38.8]}
21. Rad1 {[%clk 0:02:03.6]} 21... e4 {[%clk 0:01:24.3]} 22. Ng5 {[%clk
0:01:54.1]} 22... Bxg5 {[%clk 0:00:37.8]} 23. Bxg5 {[%clk 0:01:53.6]} 23... Re8
{[%clk 0:00:39.7]} 24. Qe3 {[%clk 0:01:46.5]} 24... Bc6 {[%clk 0:00:27.6]} 25.
Rd6 {[%clk 0:01:37.6]} 25... c4 {[%clk 0:00:19.2]} 26. Bf6 {[%clk 0:01:33.2]}
26... Re6 {[%clk 0:00:06.6]} 27. Qh6 {[%clk 0:01:23.5]} 27... Rxf6 {[%clk
0:00:07.5]} 28. Rxf6 {[%clk 0:01:24.9]} 28... Nc5 {[%clk 0:00:09.4]} 29. Qe3
{[%clk 0:01:18.7]} 29... Rd8 {[%clk 0:00:08.5]} 30. h4 {[%clk 0:01:04.8]} 30...
Kg7 {[%clk 0:00:08.7]} 31. Rf4 {[%clk 0:00:49.6]} 31... Nd3 {[%clk 0:00:09.3]}
32. Re2 {[%clk 0:00:27.6]} 32... Nxf4 {[%clk 0:00:09.7]} 33. Qxf4 {[%clk
0:00:29.2]} 33... Qe7 {[%clk 0:00:09.9]} 34. Bxe4 {[%clk 0:00:26.5]} 34... Re8
{[%clk 0:00:05]} 35. Bf3 {[%clk 0:00:21.5]} 35... Qd7 {[%clk 0:00:04.5]} 36.
Rxe8 {[%clk 0:00:18.3]} 36... Qxe8 {[%clk 0:00:05]} 37. Qd4+ {[%clk 0:00:16.6]}
37... f6 {[%clk 0:00:05.4]} 38. Kg2 {[%clk 0:00:10.6]} 38... Bxf3+ {[%clk
0:00:06.3]} 39. Kxf3 {[%clk 0:00:12.5]} 39... Qxa4 {[%clk 0:00:07.7]} 40. Qd6
{[%clk 0:00:12.2]} 40... Qe8 {[%clk 0:00:06.9]} 41. Qc7+ {[%clk 0:00:13]} 41...
Qf7 {[%clk 0:00:07.8]} 42. Qd6 {[%clk 0:00:13.2]} 42... Qe8 {[%clk 0:00:08.1]}
43. h5 {[%clk 0:00:12.1]} 43... Qa8+ {[%clk 0:00:08]} 44. Kg4 {[%clk 0:00:09.7]}
44... Qe4+ {[%clk 0:00:08]} 45. f4 {[%clk 0:00:09.9]} 45... Qf5+ {[%clk
0:00:06.8]} 46. Kf3 {[%clk 0:00:10.8]} 46... Qxh5+ {[%clk 0:00:07.8]} 47. Kg2
{[%clk 0:00:09.4]} 47... Qe2+ {[%clk 0:00:08.3]} 48. Kh3 {[%clk 0:00:10.9]}
48... Qf1+ {[%clk 0:00:09.2]} 49. Kh2 {[%clk 0:00:11.6]} 49... Qe2+ {[%clk
0:00:09.8]} 50. Kh3 {[%clk 0:00:12.8]} 50... Qe8 {[%clk 0:00:11.1]} 51. Qc7+
{[%clk 0:00:13.2]} 51... Qf7 {[%clk 0:00:12.4]} 52. Qd6 {[%clk 0:00:14.5]} 52...
h5 {[%clk 0:00:12.9]} 53. Kh2 {[%clk 0:00:14.4]} 53... Qe8 {[%clk 0:00:12]} 54.
Kh3 {[%clk 0:00:14.6]} 54... Qc8+ {[%clk 0:00:11.9]} 55. Kh2 {[%clk 0:00:15.6]}
55... Qe8 {[%clk 0:00:10.9]} 56. Qc7+ {[%clk 0:00:15.2]} 56... Qf7 {[%clk
0:00:11.9]} 57. Qd6 {[%clk 0:00:16.7]} 57... Qb7 {[%clk 0:00:13]} 58. Qe6 {[%clk
0:00:15.1]} 58... b5 {[%clk 0:00:13.3]} 59. f5 {[%clk 0:00:15.3]} 59... g5
{[%clk 0:00:10.7]} 60. Qe8 {[%clk 0:00:16.3]} 60... Qf7 {[%clk 0:00:04.9]} 61.
Qxb5 {[%clk 0:00:17]} 61... h4 {[%clk 0:00:05.4]} 62. Qc6 {[%clk 0:00:16.3]}
62... hxg3+ {[%clk 0:00:05.6]} 63. Kxg3 {[%clk 0:00:18.2]} 63... Kh7 {[%clk
0:00:06.1]} 64. Kg4 {[%clk 0:00:19.1]} 64... Kg7 {[%clk 0:00:06.8]} 65. Qd6
{[%clk 0:00:19.5]} 65... Qe8 {[%clk 0:00:07.1]} 66. Qc7+ {[%clk 0:00:20]} 66...
Qf7 {[%clk 0:00:07.8]} 67. Qd6 {[%clk 0:00:21.1]} 67... a5 {[%clk 0:00:08.4]}
68. Qd8 {[%clk 0:00:21]} 68... a4 {[%clk 0:00:08.6]} 69. Qb8 {[%clk 0:00:21.2]}
69... Qe7 {[%clk 0:00:08.7]} 70. Kf3 {[%clk 0:00:20]} 70... Qe5 {[%clk
0:00:05.7]} 71. Qb7+ {[%clk 0:00:17.5]} 71... Kh6 {[%clk 0:00:05.3]} 72. Qd7
{[%clk 0:00:19]} 72... Qf4+ {[%clk 0:00:06.3]} 73. Ke2 {[%clk 0:00:19.8]} 73...
Qe4+ {[%clk 0:00:06.7]} 74. Kf2 {[%clk 0:00:20.6]} 74... g4 {[%clk 0:00:06.5]}
75. Qc8 {[%clk 0:00:21.5]} 75... Kg5 {[%clk 0:00:06.9]} 76. Qe6 {[%clk 0:00:20]}
76... Qf4+ {[%clk 0:00:05.7]} 77. Kg2 {[%clk 0:00:20]} 77... Qf3+ {[%clk
0:00:06.8]} 78. Kg1 {[%clk 0:00:21.2]} 78... Qd1+ {[%clk 0:00:06.6]} 79. Kg2
{[%clk 0:00:22.2]} 79... Qd2+ {[%clk 0:00:07.8]} 80. Kg1 {[%clk 0:00:23.4]}
80... Qxb2 {[%clk 0:00:08.5]} 81. Qxc4 {[%clk 0:00:23.4]} 81... Qc1+ {[%clk
0:00:09.4]} 82. Kg2 {[%clk 0:00:24.2]} 82... a3 {[%clk 0:00:10]} 83. Qg8+ {[%clk
0:00:23]} 83... Kxf5 {[%clk 0:00:11.3]} 84. Qd5+ {[%clk 0:00:22.8]} 84... Kg6
{[%clk 0:00:11]} 85. Qg8+ {[%clk 0:00:23.8]} 85... Kf5 {[%clk 0:00:10.5]} 86.
Qd5+ {[%clk 0:00:24.5]} 86... Kf4 {[%clk 0:00:09.8]} 87. Qd4+ {[%clk 0:00:25.3]}
87... Kg5 {[%clk 0:00:10.3]} 88. Qd5+ {[%clk 0:00:25.8]} 88... Kh4 {[%clk
0:00:09.7]} 89. Qd6 {[%clk 0:00:21.6]} 89... Qc2+ {[%clk 0:00:09.8]} 90. Kg1
{[%clk 0:00:22.3]} 90... Qb1+ {[%clk 0:00:09.3]} 91. Kg2 {[%clk 0:00:23.3]}
91... Qe4+ {[%clk 0:00:09.9]} 92. Kg1 {[%clk 0:00:24.2]} 92... Qe1+ {[%clk
0:00:10.1]} 93. Kg2 {[%clk 0:00:24.6]} 93... Qe2+ {[%clk 0:00:11.2]} 94. Kg1
{[%clk 0:00:25.6]} 94... Qe3+ {[%clk 0:00:12.2]} 95. Kg2 {[%clk 0:00:26.8]}
95... Qf3+ {[%clk 0:00:13.3]} 96. Kg1 {[%clk 0:00:27.7]} 96... Qg3+ {[%clk
0:00:14]} 97. Qxg3+ {[%clk 0:00:27.3]} 97... Kxg3 {[%clk 0:00:15.9]} 98. c4
{[%clk 0:00:28.8]} 98... a2 {[%clk 0:00:17.8]} 0-1